bitfinex/quotes_ETHUSD_20240917
["timestamp","ask_amount","ask_price","bid_price","bid_amount"]
[1726597334521,6.59833,2364.9,2364.4,4.22936]
[1726597334690,0.39824502,2364.8,2364.4,4.22936]
[1726597335023,4.62711502,2364.7,2364.3,4.22947]
[1726597335214,0.39824502,2364.6,2364.3,4.22947]
[1726597335391,0.39824502,2364.5,2364.4,4.2294]
[1726597336333,4.22878,2364.8,2364.4,4.2294]
[1726597336411,0.39820667,2364.5,2364.4,4.2294]
[1726597336831,4.22878,2364.8,2364.4,4.2294]
[1726597336994,0.39818094,2364.7,2364.5,4.22922]
[1726597337192,0.39818094,2364.6,2364.5,4.22922]
[1726597338430,10.82683,2364.9,2364.5,4.22922]
[1726597338647,4.22912,2364.6,2364.2,4.22974]
[1726597338838,0.39819005,2364.5,2364.3,4.22949]
[1726597339135,4.22881,2364.8,2364.3,4.22949]
[1726597339409,1.03502803,2364.7,2364.4,4.22937]
[1726597339591,2.3697,2364.9,2364.2,4.22976]
[1726597339701,0.3981035,2364.6,2364.5,10.79694]
[1726597339939,0.3981035,2364.6,2364.5,18.02616]
[1726597340229,7.42,2365.2,2364.7,4.22886]
[1726597340412,0.39824586,2365.1,2365.0,4.22816]
[1726597343073,0.39824586,2365.1,2365.0,10.72028]
[1726597343240,7.83956503,2365.6,2365.4,4.22756]
[1726597343241,7.42,2365.6,2365.4,4.22756]
[1726597343309,2.87727403,2365.8,2365.4,4.22756]
[1726597343548,4.19187707,2365.8,2365.4,4.22756]
[1726597343727,0.63720018,2365.7,2365.2,4.22786]
[1726597343908,0.39824886,2365.5,2365.3,4.22778]
[1726597344255,0.39824886,2365.4,2365.3,4.22778]
[1726597344534,0.62129959,2365.4,2365.3,4.22778]
[1726597344845,0.62129959,2365.4,2365.3,18.914524]
[1726597345029,9.8015,2366.1,2365.8,4.22682]
[1726597345349,1.01260533,2366.0,2365.8,4.22682]
[1726597345574,1.01260533,2365.9,2365.8,11.711293]
[1726597345865,0.6214759,2365.9,2365.8,11.711293]
[1726597346630,0.0353524,2366.3,2366.0,4.22648]
[1726597347073,0.62144576,2366.2,2365.6,2.3163]
[1726597347090,0.62144576,2366.1,2365.7,4.2269]
[1726597347272,0.62144576,2366.0,2365.6,4.22724]
[1726597347580,0.62144576,2365.9,2365.6,4.22724]
[1726597347778,0.62144576,2365.8,2365.6,4.22713]
[1726597347980,0.62144576,2365.7,2365.6,4.22713]
[1726597348186,2.2863,2365.9,2365.5,4.22742]
[1726597348381,0.62144576,2365.8,2365.5,4.22742]
[1726597348562,0.62144576,2365.8,2365.4,4.2276]
[1726597348776,0.62144576,2365.7,2365.4,4.2276]
[1726597348982,0.62144576,2365.6,2365.4,4.2276]
[1726597349166,0.62144576,2365.5,2365.4,4.2276]
[1726597349499,0.62913526,2365.5,2365.4,4.2276]
[1726597350152,0.0076895,2365.5,2365.4,4.2276]
[1726597350189,0.63372959,2365.5,2365.4,4.2276]
[1726597350894,3.10422959,2365.5,2365.2,4.22779]
[1726597351057,0.62604009,2365.4,2365.2,4.22779]
[1726597351259,2.4781895,2365.5,2365.2,4.22779]
[1726597351260,0.12604009,2365.3,2365.2,4.22779]
[1726597351460,0.0076895,2365.3,2365.2,4.22779]
[1726597352249,0.0076895,2365.3,2365.1,4.22813]
[1726597352449,0.0076895,2365.3,2364.7,9.51797]
[1726597352450,0.0076895,2365.3,2364.9,4.22839]
[1726597353481,0.0076895,2365.3,2365.0,4.22832]
[1726597354349,0.0076895,2365.3,2365.1,4.22813]
[1726597355093,0.0076895,2365.3,2365.2,4.22797]
[1726597355297,0.0076895,2365.3,2365.2,6.939967]
[1726597356121,0.0076895,2365.3,2365.2,11.167937]
[1726597356786,0.0076895,2365.3,2365.2,14.167937]
[1726597359140,0.0076895,2365.3,2365.2,18.395907]
[1726597367036,0.0076895,2365.3,2365.2,22.623877]
[1726597367222,0.0076895,2365.3,2365.2,23.173877]
[1726597369354,0.0076895,2365.3,2365.2,18.395907]
[1726597380174,0.0076895,2365.3,2365.2,22.41781272]
[1726597381405,0.0076895,2365.3,2365.2,26.64578272]
[1726597381746,0.0076895,2365.3,2365.2,22.41781272]
[1726597381978,0.0076895,2365.3,2365.2,26.64578272]
[1726597382284,0.0076895,2365.3,2365.2,27.19578272]
[1726597387505,0.0076895,2365.3,2365.2,22.96781272]
[1726597387657,0.0076895,2365.3,2365.2,22.41781272]
[1726597387854,0.65849527,2365.3,2365.2,22.41781272]
[1726597390882,0.65791217,2365.3,2365.2,22.41781272]
[1726597391689,0.65791217,2365.3,2365.2,13.106707]
[1726597391981,1.69827958,2365.3,2365.2,8.45594]
[1726597393182,1.69827958,2365.3,2365.2,11.45594]
[1726597394080,1.96305555,2365.3,2365.2,11.45594]
[1726597394286,1.96305555,2365.3,2365.2,19.70581572]
[1726597394479,1.69827958,2365.3,2365.2,21.67639729]
[1726597395679,0.65791217,2365.3,2365.2,21.67639729]
[1726597397501,1.71695285,2365.3,2365.2,21.67639729]
[1726597397695,1.70682554,2365.3,2365.2,21.67639729]
[1726597398028,0.66318574,2365.3,2365.2,21.67639729]
[1726597398216,1.71197973,2365.3,2365.2,21.67639729]
[1726597398610,1.71197973,2365.3,2365.2,13.42652157]
[1726597399528,1.71197973,2365.3,2365.2,21.67639729]
[1726597399921,0.66318574,2365.3,2365.2,21.67639729]
[1726597400384,1.70674948,2365.3,2365.2,21.67639729]
[1726597401190,0.0076895,2365.3,2365.2,21.67639729]
[1726597401193,1.7034347,2365.3,2365.2,13.42652157]
[1726597401386,4.1001347,2365.3,2365.2,4.22797]
[1726597401635,5.9312947,2365.3,2364.8,4.22866]
[1726597401832,5.41185588,2365.2,2365.0,4.22818]
[1726597402000,1.90757806,2365.1,2365.0,4.22818]
[1726597402935,1.90757806,2365.1,2364.9,8.45693]
[1726597403249,2.3967,2364.9,2364.6,4.2289]
[1726597403403,1.6957452,2364.8,2364.7,4.22877]
[1726597404119,1.960593,2364.8,2364.7,8.45763]
[1726597404300,1.6957452,2364.8,2364.7,8.45763]
[1726597404600,2.3967,2364.9,2364.8,4.22868]
[1726597404753,4.38308157,2364.9,2364.8,4.22868]
[1726597405496,4.1182307,2364.9,2364.8,4.22868]
[1726597406510,4.1182307,2364.9,2364.6,4.229]
[1726597406825,4.1182307,2364.9,2364.7,4.22886]
[1726597406826,1.7215307,2364.8,2364.7,4.22886]
[1726597407211,1.7215307,2364.8,2364.7,9.303506]
[1726597407437,0.66212719,2364.8,2364.7,0.845786]
[1726597407778,2.77219339,2364.8,2364.5,4.22908]
[1726597408150,1.70662892,2364.8,2364.5,4.22908]
[1726597408155,1.70656355,2364.7,2364.5,4.22908]
[1726597408332,0.65639574,2364.6,2364.5,7.22908]
[1726597408514,2.96459574,2364.6,2364.2,4.22962]
[1726597408706,2.11399529,2364.5,2364.3,4.2295]
[1726597408954,1.06401619,2364.4,2364.3,4.2295]
[1726597409120,1.06401619,2364.4,2364.3,8.45908]
[1726597409318,2.3082,2364.6,2364.5,8.45844]
[1726597409649,3.37206527,2364.6,2364.5,8.45844]
[1726597410523,3.37206527,2364.6,2364.5,4.22922]
[1726597411503,2.96133824,2364.6,2364.5,4.22922]
[1726597411920,3.36897399,2364.6,2364.5,4.22922]
[1726597413041,0.65313824,2364.6,2364.5,9.34451706]
[1726597413223,2.4279,2364.9,2364.8,4.22868]
[1726597413420,4.53384022,2364.9,2364.8,4.22868]
[1726597414347,3.4887437,2364.9,2364.8,8.45736]
[1726597415172,1.0608437,2364.9,2364.8,17.55368172]
[1726597415351,2.4877895,2365.2,2364.9,4.22841]
[1726597415509,1.05784513,2365.1,2365.0,4.2283]
[1726597416914,1.05792575,2365.1,2365.0,4.2283]
[1726597417150,1.0579337,2365.1,2365.0,4.2283]
[1726597417509,0.65008473,2365.1,2365.0,4.2283]
[1726597418440,2.4877895,2365.2,2365.1,4.22815]
[1726597418444,3.12570701,2365.2,2365.1,4.22815]
[1726597418639,0.40786065,2365.1,2365.0,4.22824]
[1726597418955,1.04577816,2365.1,2365.0,4.22824]
[1726597420741,0.63791751,2365.1,2365.0,4.22824]
[1726597420949,1.04595779,2365.1,2365.0,4.22824]
[1726597421599,2.0670385,2365.1,2365.0,4.22824]
[1726597422131,2.06702586,2365.1,2365.0,4.22824]
[1726597422374,2.06701806,2365.1,2365.0,4.22824]
[1726597422539,1.04595779,2365.1,2365.0,4.22824]
[1726597423037,2.10526895,2365.1,2365.0,8.45656]
[1726597423240,2.10526895,2365.1,2365.0,10.00440657]
[1726597423241,0.63791751,2365.1,2365.0,10.00440657]
[1726597423478,0.63791751,2365.1,2365.0,14.02631229]
[1726597424735,0.63791751,2365.1,2365.0,21.25463229]
[1726597425196,0.0076895,2365.2,2365.1,11.4563]
[1726597425326,0.0076895,2365.2,2365.1,13.88172923]
[1726597425762,0.66869111,2365.2,2365.1,13.88172923]
[1726597425865,0.66869111,2365.2,2365.1,18.10987923]
[1726597426026,0.0076895,2365.2,2365.1,18.10987923]
[1726597426231,0.0076895,2365.2,2365.1,20.56467923]
[1726597426485,0.0076895,2365.2,2365.1,24.79282923]
[1726597427296,0.0393327,2366.0,2365.9,8.45344]
[1726597427448,0.68808203,2366.0,2365.9,12.47534572]
[1726597427995,0.68808203,2366.0,2365.9,8.45344]
[1726597428304,0.68808203,2366.0,2365.9,12.47534572]
[1726597428465,0.68808203,2366.0,2365.9,19.70206572]
[1726597428678,0.0393327,2366.0,2365.9,20.58814278]
[1726597430063,0.0393327,2366.0,2365.9,16.36142278]
[1726597431134,0.0393327,2366.0,2365.9,24.81486278]
[1726597431419,0.0393327,2366.0,2365.9,27.61976278]
[1726597432038,0.0393327,2366.0,2365.9,23.39304278]
[1726597432421,0.0393327,2366.0,2365.9,27.61976278]
[1726597438343,0.0393327,2366.0,2365.9,22.84304278]
[1726597443947,0.0393327,2366.0,2365.9,27.61976278]
[1726597444161,0.0393327,2366.0,2365.9,31.84648278]
[1726597445382,0.0393327,2366.7,2366.6,20.45188]
[1726597445538,0.0393327,2366.7,2366.6,24.47378572]
[1726597445700,0.0393327,2367.4,2367.3,8.44844]
[1726597445836,0.0393327,2367.4,2367.3,12.47034572]
[1726597446104,0.0393327,2367.4,2367.3,21.36403329]
[1726597447230,0.0393327,2367.4,2367.3,17.13981329]
[1726597447552,0.0393327,2367.4,2367.3,13.11790757]
[1726597448051,0.0393327,2367.4,2367.3,17.13981329]
[1726597449435,0.0393327,2367.4,2367.3,13.11790757]
[1726597449643,0.0393327,2367.4,2367.3,7.22422]
[1726597449840,2.3874327,2367.4,2367.3,7.22422]
[1726597450837,2.3874327,2367.4,2367.3,4.22422]
[1726597453531,6.6114827,2367.4,2366.8,4.225]
[1726597453729,6.6114827,2367.4,2366.6,4.22545]
[1726597453730,2.3348,2367.2,2366.6,4.22545]
[1726597454043,2.3348,2367.2,2367.0,4.22467]
[1726597454256,0.63659192,2367.1,2367.0,4.22467]
[1726597454971,2.3348,2367.2,2367.0,4.22467]
[1726597455230,0.63655379,2367.1,2367.0,4.22467]
[1726597455476,0.63655333,2367.1,2367.0,4.22467]
[1726597456362,0.63655333,2367.1,2367.0,9.29438]
[1726597456658,2.5025327,2367.4,2367.3,4.22422]
[1726597456842,4.1589369,2367.4,2367.3,4.22422]
[1726597457248,1.6957369,2367.4,2367.3,8.44844]
[1726597457446,0.0393327,2367.4,2367.3,17.96146]
[1726597457695,0.0393327,2367.4,2367.3,20.15979657]
[1726597457970,0.0393327,2367.4,2367.3,24.93401657]
[1726597466083,0.0393327,2367.4,2367.3,29.15823657]
[1726597466473,9.828,2368.5,2367.3,29.15823657]
[1726597466474,2.408,2368.5,2368.4,8.4445]
[1726597466707,0.0392414,2368.8,2368.6,4.22177]
[1726597466708,2.4011,2368.7,2368.6,4.22177]
[1726597466884,3.06542931,2368.7,2368.6,8.44367]
[1726597467330,2.4395516,2368.7,2368.6,8.44367]
[1726597473230,0.0384516,2368.7,2368.6,20.93403329]
[1726597473778,0.0384516,2368.7,2368.6,25.70593329]
[1726597474418,0.0384516,2368.7,2368.6,21.48403329]
[1726597474735,0.0384516,2368.7,2368.6,28.10113329]
[1726597475983,0.0392414,2368.8,2368.6,36.34493901]
[1726597476298,0.0392414,2368.8,2368.7,28.121249]
[1726597479627,0.0392414,2368.8,2368.7,32.14315472]
[1726597479816,0.0392414,2369.5,2369.4,15.66141]
[1726597480014,0.0392414,2369.5,2369.4,19.68331572]
[1726597480807,1.6042414,2369.9,2369.8,4.21976]
[1726597482068,1.6042414,2369.9,2369.4,3.0]
[1726597482237,0.58235914,2369.9,2369.5,4.22018]
[1726597482436,4.80194914,2369.9,2369.5,4.22018]
[1726597482949,7.4592414,2370.2,2369.7,4.21991]
[1726597482955,7.4592414,2370.2,2369.4,4.02190572]
[1726597482956,0.0392414,2370.2,2370.0,4.2193]
[1726597483345,0.0392414,2370.2,2370.1,8.43846]
[1726597483970,2.5092414,2370.2,2370.1,8.43846]
[1726597484387,2.5092414,2370.2,2370.1,4.21923]
[1726597484963,2.5092414,2370.2,2370.1,8.43846]
[1726597485156,0.0392414,2370.2,2370.1,9.282323]
[1726597487735,0.0392414,2370.2,2370.1,4.21923]
[1726597490077,0.0392414,2370.2,2370.0,3.0]
[1726597490078,2.4539414,2370.2,2370.0,3.0]
[1726597490378,2.4539414,2370.2,2370.0,7.21938]
[1726597490957,2.4539414,2370.2,2370.1,4.21923]
[1726597491539,2.4539414,2370.2,2370.0,7.21938]
[1726597491867,2.4539414,2370.2,2370.0,7.21932]
[1726597492378,2.4539414,2370.2,2369.8,4.21959]
[1726597492558,2.4539414,2370.2,2369.9,4.21946]
[1726597494271,2.4539414,2370.2,2369.9,4.21948]
[1726597494595,2.4539414,2370.2,2370.0,4.21937]
[1726597496860,2.4539414,2370.2,2370.0,4.21931]
[1726597497202,2.4539414,2370.2,2370.1,4.21923]
[1726597500317,2.4539414,2370.2,2370.0,4.21931]
[1726597500668,2.4539414,2370.2,2370.0,4.21936]
[1726597500868,2.4539414,2370.2,2370.1,4.21923]
[1726597501218,0.0392414,2370.2,2370.1,8.43846]
[1726597501508,0.0392414,2370.2,2370.1,9.282319]
[1726597504547,0.0392414,2370.2,2369.5,3.0]
[1726597504548,2.2918414,2370.2,2369.5,3.0]
[1726597504691,2.2918414,2370.2,2370.1,8.43846]
[1726597505034,2.2918414,2370.2,2369.8,4.21966]
[1726597505373,2.2526,2370.0,2369.6,4.21998]
[1726597505856,2.2526,2370.0,2369.7,4.21993]
[1726597505938,2.2526,2370.0,2369.6,4.22004]
[1726597506225,2.2526,2370.0,2369.7,4.21993]
[1726597506945,2.2526,2370.0,2369.8,4.21973]
[1726597507246,2.2526,2370.0,2369.4,4.22046]
[1726597507247,2.3509414,2370.2,2370.0,4.21938]
[1726597507664,2.3509414,2370.2,2370.1,8.43846]
[1726597507850,2.3509414,2370.2,2370.1,4.21923]
[1726597509253,0.0392414,2370.2,2370.1,8.43846]
[1726597509417,0.0392414,2370.2,2370.1,9.282306]
[1726597510217,0.0392414,2370.2,2370.1,12.282306]
[1726597510415,0.0392414,2370.2,2370.1,21.07344172]
[1726597510616,0.0392414,2370.2,2370.1,25.29267172]
[1726597510816,0.0392414,2370.2,2370.1,21.07344172]
[1726597511352,0.0392414,2370.2,2370.1,23.54244172]
[1726597515266,0.0392414,2370.2,2370.1,27.76167172]
[1726597516416,0.0392414,2370.2,2370.1,23.739766]
[1726597517472,0.0392414,2370.2,2370.1,27.958996]
[1726597518629,0.0392414,2370.2,2370.1,23.739766]
[1726597518831,0.0392414,2370.2,2370.1,27.958996]
[1726597519309,0.0392414,2370.2,2370.1,23.739766]
[1726597522578,0.0392414,2370.2,2370.1,19.520536]
[1726597523047,0.0392414,2370.2,2370.1,16.501536]
[1726597523831,0.0392414,2370.2,2370.1,20.52344172]
[1726597524053,0.0392414,2370.2,2370.1,14.051536]
[1726597524466,0.0392414,2370.2,2370.1,9.282306]
[1726597525066,0.0392414,2370.2,2370.1,13.501536]
[1726597525226,0.0392414,2370.2,2370.1,17.52344172]
[1726597525685,0.0392414,2370.2,2370.1,19.94884172]
[1726597526562,0.0392414,2370.2,2370.1,22.94884172]
[1726597527054,0.0392414,2370.2,2370.1,23.49884172]
[1726597528189,0.0392414,2370.2,2370.1,27.71807172]
[1726597528738,0.0392414,2370.2,2370.1,23.696166]
[1726597528858,0.0392414,2370.2,2370.1,19.476936]
[1726597529257,9.8558414,2370.9,2370.1,19.476936]
[1726597529258,9.8166,2370.9,2370.8,4.21798]
[1726597529475,2.82996723,2370.9,2370.7,4.21814]
[1726597529799,0.37350833,2370.8,2370.7,4.21814]
[1726597530201,0.43336723,2370.8,2370.7,4.21814]
[1726597530951,3.42750852,2370.8,2370.7,4.21814]
[1726597531766,3.42750852,2370.8,2370.6,4.21833]
[1726597531976,0.37350833,2370.7,2370.5,4.21848]
[1726597532262,1.05792314,2370.7,2370.5,4.21848]
[1726597532581,2.3966,2370.5,2370.3,4.21884]
[1726597532784,2.3966,2370.5,2370.4,4.21869]
[1726597533149,2.78475678,2370.5,2370.4,4.21869]
[1726597535386,2.78483574,2370.5,2370.4,9.581133]
[1726597535594,2.78484275,2370.5,2370.4,5.362443]
[1726597535885,2.78484275,2370.5,2370.4,4.21869]
[1726597536602,3.4120887,2370.5,2370.4,8.43738]
[1726597536996,3.4120887,2370.5,2370.4,4.21869]
[1726597537320,3.4120887,2370.5,2370.4,8.43738]
[1726597537501,3.4120887,2370.5,2370.4,4.21869]
[1726597537666,3.4120887,2370.5,2370.4,8.43738]
[1726597538008,3.4120887,2370.5,2370.2,3.0]
[1726597538324,3.4120887,2370.5,2369.9,4.02190572]
[1726597538325,1.0154887,2370.4,2370.3,4.21879]
[1726597539304,1.0154887,2370.4,2370.3,8.43766]
[1726597539488,1.0154887,2370.4,2370.3,9.68361657]
[1726597539900,1.0135503,2370.4,2370.3,9.68361657]
[1726597540417,1.01392455,2370.4,2370.3,9.68361657]
[1726597540506,2.3966,2370.5,2370.4,4.21869]
[1726597540803,0.0598589,2370.6,2370.5,4.21851]
[1726597540990,1.05771317,2370.6,2370.5,4.21851]
[1726597543364,0.0598589,2370.6,2370.5,9.40533566]
[1726597543492,1.0846163,2370.6,2370.5,13.42724138]
[1726597543808,0.0598589,2370.6,2370.5,13.42724138]
[1726597544004,0.0598589,2370.6,2370.5,9.40533566]
[1726597545094,0.45399945,2370.6,2370.5,9.40533566]
[1726597546516,0.0598589,2370.6,2370.5,9.40533566]
[1726597546723,0.45399578,2370.6,2370.5,9.40533566]
[1726597546942,0.8481322,2370.6,2370.5,9.40533566]
[1726597547518,1.47992835,2370.6,2370.5,9.40533566]
[1726597549054,0.8481322,2370.6,2370.5,9.40533566]
[1726597549366,1.08577878,2370.6,2370.5,9.40533566]
[1726597549561,1.47765169,2370.6,2370.5,9.40533566]
[1726597550184,1.47765532,2370.6,2370.5,9.40533566]
[1726597550391,1.47765909,2370.6,2370.5,9.40533566]
[1726597550658,1.08352221,2370.6,2370.5,9.40533566]
[1726597551367,1.73755211,2370.6,2370.5,9.40533566]
[1726597551597,1.73755211,2370.6,2370.5,8.43702]
[1726597553509,0.6916662,2370.6,2370.5,8.43702]
[1726597554040,1.73696872,2370.6,2370.5,8.43702]
[1726597554339,1.73696872,2370.6,2370.5,10.71072]
[1726597555881,1.73696872,2370.6,2370.5,8.43702]
[1726597556080,1.73696872,2370.6,2370.5,10.45674723]
[1726597557293,1.10516142,2370.6,2370.5,10.45674723]
[1726597557589,0.69179075,2370.6,2370.5,14.67525723]
[1726597557788,1.72555372,2370.6,2370.5,14.67525723]
[1726597558556,1.72555372,2370.6,2370.5,10.45674723]
[1726597558756,1.72555372,2370.6,2370.5,8.43702]
[1726597559636,1.09362187,2370.6,2370.5,8.43702]
[1726597560045,3.58462187,2370.6,2370.5,8.43702]
[1726597560382,1.09362187,2370.6,2370.5,12.65553]
[1726597560708,1.09362187,2370.6,2370.5,14.92633]
[1726597560747,0.0598589,2370.6,2370.5,17.00245611]
[1726597561130,0.50153779,2370.6,2370.5,17.00245611]
[1726597561331,1.51032717,2370.6,2370.5,17.00245611]
[1726597561574,0.8895337,2370.6,2370.5,12.78394611]
[1726597561747,2.14618032,2370.6,2370.5,12.78394611]
[1726597561944,2.14618032,2370.6,2370.5,17.00245611]
[1726597562379,2.14618032,2370.6,2370.5,12.78394611]
[1726597563061,1.13741575,2370.6,2370.5,10.51314611]
[1726597563119,2.14922679,2370.6,2370.5,10.51314611]
[1726597563382,2.14922679,2370.6,2370.5,12.65553]
[1726597563571,1.52657384,2370.6,2370.5,19.04336692]
[1726597564078,0.89069588,2370.6,2370.5,19.04336692]
[1726597564280,0.89073232,2370.6,2370.5,19.04336692]
[1726597564574,0.89073982,2370.6,2370.5,21.89636284]
[1726597564776,1.52684252,2370.6,2370.5,21.89636284]
[1726597564964,1.52686952,2370.6,2370.5,21.89636284]
[1726597565146,1.08519063,2370.6,2370.5,21.89636284]
[1726597565444,0.44921677,2370.6,2370.5,21.32932592]
[1726597565554,0.44921677,2370.6,2370.5,25.54783592]
[1726597565555,0.0598589,2370.6,2370.5,25.54783592]
[1726597565903,0.0598589,2370.6,2370.5,27.02205662]
[1726597566367,0.0598589,2370.6,2370.5,27.0220231]
[1726597567077,0.0598589,2370.6,2370.5,22.8035131]
[1726597567687,0.0598589,2370.6,2370.5,21.34632099]
[1726597567980,0.0598589,2370.6,2370.5,19.07552099]
[1726597568179,0.0598589,2370.6,2370.5,18.50852592]
[1726597569383,0.0598589,2370.6,2370.5,19.05852592]
[1726597569547,0.0598589,2370.6,2370.5,26.18556627]
[1726597569808,0.0598589,2370.6,2370.5,27.09274926]
[1726597571427,0.0598589,2370.6,2370.5,26.18556627]
[1726597571901,0.0598589,2370.6,2370.5,21.96705627]
[1726597572050,0.0598589,2370.6,2370.5,26.18556627]
[1726597573253,0.0598589,2370.6,2370.5,21.96705627]
[1726597573497,0.0598589,2370.6,2370.5,21.40002592]
[1726597574131,0.68841561,2370.6,2370.5,15.50852592]
[1726597574428,0.6884054,2370.6,2370.5,11.29001592]
[1726597574579,1.07861258,2370.6,2370.5,11.29001592]
[1726597574785,0.6884054,2370.6,2370.5,11.29001592]
[1726597575200,0.6884054,2370.6,2370.5,15.50852592]
[1726597575397,0.6884054,2370.6,2370.5,18.50852592]
[1726597576031,0.0598589,2370.6,2370.5,19.05852592]
[1726597577820,0.0598589,2370.6,2370.5,14.29001592]
[1726597578004,0.0598589,2370.6,2370.5,18.50852592]
[1726597578206,0.0598589,2370.6,2370.5,19.05852592]
[1726597578691,0.0598589,2370.6,2370.5,26.1188459]
[1726597580601,0.0598589,2370.6,2370.5,26.11884784]
[1726597580734,0.0598589,2370.6,2370.5,26.11884767]
[1726597581425,0.0598589,2370.6,2370.5,25.55183592]
[1726597581570,0.0598589,2370.6,2370.5,26.11884861]
[1726597582022,0.0598589,2370.6,2370.5,21.33332592]
[1726597582425,0.0598589,2370.6,2370.5,21.35034334]
[1726597582740,0.0598589,2370.6,2370.5,20.78332592]
[1726597584335,0.0598589,2370.6,2370.5,18.50852592]
[1726597585328,0.0598589,2370.6,2370.5,19.0755506]
[1726597586539,0.0598589,2370.6,2370.5,18.50852592]
[1726597589252,0.69149744,2370.6,2370.5,18.50852592]
[1726597589659,1.02657672,2370.6,2370.5,15.65553]
[1726597591254,0.39493818,2370.6,2370.5,15.65553]
[1726597591592,2.5202044,2370.7,2370.6,11.43668]
[1726597591793,3.15183212,2370.7,2370.6,11.43668]
[1726597592346,4.17872022,2370.7,2370.6,11.43668]
[1726597593493,1.72822022,2370.7,2370.6,21.64465229]
[1726597593640,1.09628908,2370.7,2370.6,21.64465229]
[1726597594193,0.46466136,2370.7,2370.6,21.64465229]
[1726597594890,0.46466136,2370.7,2370.6,28.76429229]
[1726597595266,0.0697044,2370.7,2370.6,28.76429229]
[1726597596290,0.69402442,2370.7,2370.6,28.76429229]
[1726597596585,0.0697044,2370.7,2370.6,28.76429229]
[1726597599053,0.69410769,2370.7,2370.6,28.76429229]
[1726597599286,0.0697044,2370.7,2370.6,28.76429229]
[1726597599476,0.6941073,2370.7,2370.6,28.76429229]
[1726597599800,0.0697044,2370.7,2370.6,28.76429229]
[1726597600180,0.69407614,2370.7,2370.6,28.76429229]
[1726597601119,0.0697044,2370.7,2370.6,28.76429229]
[1726597601409,0.6940862,2370.7,2370.6,28.76429229]
[1726597601580,0.0697044,2370.7,2370.6,28.76429229]
[1726597602386,0.69410232,2370.7,2370.6,28.76429229]
[1726597602682,0.0697044,2370.7,2370.6,28.76429229]
[1726597603090,0.69409948,2370.7,2370.6,28.76429229]
[1726597603415,0.0697044,2370.7,2370.6,28.76429229]
[1726597603609,0.69409935,2370.7,2370.6,28.76429229]
[1726597603786,0.69409675,2370.7,2370.6,28.76429229]
[1726597603972,0.0697044,2370.7,2370.6,28.76429229]
[1726597605500,0.70984519,2370.7,2370.6,28.76429229]
[1726597605811,0.70984519,2370.7,2370.6,24.54595229]
[1726597606128,0.70984519,2370.7,2370.6,22.19465229]
[1726597606473,0.70964481,2370.7,2370.6,22.19465229]
[1726597607527,0.70965217,2370.7,2370.6,22.19465229]
[1726597609913,0.0697044,2370.7,2370.6,22.19465229]
[1726597610114,0.70962368,2370.7,2370.6,22.19465229]
[1726597610324,0.0697044,2370.7,2370.6,22.19465229]
[1726597611217,0.70953698,2370.7,2370.6,22.19465229]
[1726597611590,0.0697044,2370.7,2370.6,22.19465229]
[1726597612125,0.70957922,2370.7,2370.6,22.19465229]
[1726597612937,0.70957922,2370.7,2370.6,11.43668]
[1726597613085,1.73324099,2370.7,2370.6,11.43668]
[1726597614523,2.385,2370.6,2370.3,4.21871]
[1726597614734,3.71218023,2370.4,2370.3,4.21871]
[1726597614898,4.04853659,2370.4,2370.3,8.43758]
[1726597615109,4.07925639,2370.4,2370.3,4.21871]
[1726597615741,4.07925639,2370.4,2370.3,8.43758]
[1726597615951,4.07925639,2370.4,2370.3,4.21871]
[1726597616850,4.07925639,2370.4,2370.3,8.43758]
[1726597617060,0.67059462,2370.4,2370.3,9.68352857]
[1726597617278,0.67059462,2370.4,2370.3,12.68352857]
[1726597617426,0.67059462,2370.4,2370.3,16.90239857]
[1726597618434,0.0307198,2370.4,2370.3,16.90239857]
[1726597619691,0.45976244,2370.4,2370.3,17.46946696]
[1726597620136,0.0389846,2370.7,2370.6,15.65502]
[1726597620351,0.6789856,2370.7,2370.6,15.65502]
[1726597620548,0.0389846,2370.7,2370.6,20.42336]
[1726597620780,0.0389846,2370.7,2370.6,21.89749279]
[1726597621080,0.0389846,2370.7,2370.6,24.83543615]
[1726597621279,0.0389846,2370.7,2370.6,23.92829088]
[1726597622233,0.0389846,2370.7,2370.6,23.92826785]
[1726597622284,1.90117171,2371.2,2371.1,8.4349]
[1726597622792,2.52324211,2371.2,2371.1,8.4349]
[1726597625234,1.90117171,2371.2,2371.1,8.4349]
[1726597626058,2.5285893,2371.2,2371.1,8.4349]
[1726597626256,2.5285893,2371.2,2371.1,9.581149]
[1726597626656,0.62741759,2371.2,2371.1,9.581149]
[1726597627777,0.62741759,2371.2,2371.1,8.4349]
[1726597629281,2.3166846,2371.4,2371.3,4.21709]
[1726597629379,2.3166846,2371.4,2371.3,8.43418]
[1726597629840,2.92920934,2371.4,2371.3,8.43418]
[1726597630652,2.92920934,2371.4,2371.3,4.21709]
[1726597630987,4.25638957,2371.4,2371.3,4.21709]
[1726597631491,2.3366,2371.3,2371.1,4.21728]
[1726597631696,2.3366,2371.3,2371.2,4.21727]
[1726597631986,2.93779548,2371.3,2371.2,4.21727]
[1726597632145,3.31354069,2371.3,2371.2,4.21727]
[1726597632366,2.71234521,2371.3,2371.2,4.21727]
[1726597632717,2.3366,2371.3,2371.2,4.21727]
[1726597632770,2.96993703,2371.3,2371.2,4.21727]
[1726597633297,3.94687447,2371.3,2371.2,4.21727]
[1726597633446,3.94687447,2371.3,2371.2,8.43454]
[1726597635994,3.94686232,2371.3,2371.2,4.21727]
[1726597636289,4.52037983,2371.3,2371.2,4.21727]
[1726597636490,4.87062262,2371.3,2371.1,4.21737]
[1726597636687,2.3172,2371.1,2370.3,13.86186]
[1726597637015,2.3172,2370.9,2370.8,4.21789]
[1726597637318,3.95071905,2370.9,2370.8,4.21789]
[1726597637868,3.95071905,2370.9,2370.1,4.21922]
[1726597637869,2.4713,2370.8,2370.1,4.21922]
[1726597638073,1.63351905,2370.7,2370.5,4.21842]
[1726597638281,2.4713,2370.8,2370.5,4.21842]
[1726597638282,1.01801494,2370.6,2370.5,4.21842]
[1726597639018,1.01801494,2370.6,2370.5,8.43693]
[1726597639231,1.01801494,2370.6,2370.5,11.43693]
[1726597639777,1.66626187,2370.6,2370.5,11.43693]
[1726597641368,1.27786581,2370.6,2370.5,11.43693]
[1726597641659,1.68070389,2370.6,2370.5,11.43693]
[1726597642923,2.71635965,2370.6,2370.5,11.43693]
[1726597643096,2.4713,2370.8,2370.6,4.21833]
[1726597643317,1.03564886,2370.7,2370.6,4.21833]
[1726597643521,1.68292694,2370.7,2370.6,4.21833]
[1726597643903,1.68292694,2370.7,2370.6,8.43667]